fUST/lending_fUST_20250131
["ID","MTS","AMOUNT","RATE_DAILY","PERIOD"]
[351075922,1738325437854,-505.05631068,0.00016438,2]
[351075923,1738325437863,-502.25458843,0.00016438,2]
[351075924,1738325437873,-507.83026249,0.00016438,2]
[351075925,1738325437882,-500.0,0.00016438,2]
[351075926,1738325437891,-500.0,0.00016438,2]
[351075927,1738325437903,-500.0,0.00016438,2]
[351075928,1738325437913,-507.78433347,0.00016438,2]
[351075929,1738325437923,-500.0,0.00016438,2]
[351075930,1738325437932,-501.89445966,0.00016438,2]
[351075931,1738325437942,-505.49128045,0.00016438,2]
[351075932,1738325437952,-501.67150542,0.00016438,2]
[351075933,1738325437962,-503.65403261,0.00016438,2]
[351075934,1738325437973,-552.75163027,0.00016438,2]
[351075935,1738325437988,-500.0,0.00016438,2]
[351075936,1738325437998,-500.0,0.00016438,2]
[351075937,1738325438009,-584.29,0.00016438,2]
[351075938,1738325438019,-503.0337729,0.00016438,2]
[351075939,1738325438030,-501.38808462,0.00016438,2]
[351075940,1738325438040,-502.26791329,0.00016438,2]
[351075941,1738325438051,-500.0,0.00016438,2]
[351075942,1738325438060,-500.0,0.00016438,2]
[351075943,1738325438070,-500.0,0.00016438,2]
[351075945,1738325438079,-630.51297817,0.00016438,2]
[351075947,1738325438088,-507.16320565,0.00016438,2]
[351075949,1738325438097,-500.0,0.00016438,2]
[351075951,1738325438106,-500.0,0.00016438,2]
[351075953,1738325438115,-308.53507303,0.00016438,2]
[351075955,1738325438124,-500.0,0.00016438,2]
[351075957,1738325438134,-500.0,0.00016438,2]
[351075959,1738325438143,-504.99417213,0.00016438,2]
[351075961,1738325438152,-507.16011455,0.00016438,2]
[351075964,1738325438162,-500.0,0.00016438,2]
[351075966,1738325438171,-587.43,0.00016438,2]
[351075967,1738325438180,-502.45817998,0.00016438,2]
[351075969,1738325438190,-496.71136044,0.00016438,2]
[351075971,1738325438199,-501.56501761,0.00016438,2]
[351075972,1738325438209,-500.0,0.00016438,2]
[351075974,1738325438219,-500.0,0.00016438,2]
[351075975,1738325438228,-507.21600722,0.00016438,2]
[351075978,1738325438238,-504.84964008,0.00016438,2]
[351075980,1738325438247,-500.0,0.00016438,2]
[351075981,1738325438256,-500.0,0.00016438,2]
[351075982,1738325438265,-505.04201128,0.00016438,2]
[351075984,1738325438275,-500.0,0.00016438,2]
[351075986,1738325438284,-500.0,0.00016438,2]
[351075988,1738325438294,-500.0,0.00016438,2]
[351075990,1738325438303,-508.66266606,0.00016438,2]
[351075992,1738325438313,-500.0,0.00016438,2]
[351075994,1738325438322,-500.0,0.00016438,2]
[351075996,1738325438331,-500.0,0.00016438,2]
[351075998,1738325438340,-500.0,0.00016438,2]
[351076000,1738325438350,-245.99783166,0.00016438,2]
[351076002,1738325438359,-503.19725641,0.00016438,2]
[351076004,1738325438369,-707.46,0.00016438,2]
[351076006,1738325438378,-500.0,0.00016438,2]
[351076008,1738325438388,-500.0,0.00016438,2]
[351076010,1738325438398,-272.8174024,0.00016438,2]
[351076012,1738325438407,-506.92965932,0.00016438,2]
[351076014,1738325438416,-500.0,0.00016438,2]
[351076016,1738325438426,-500.0,0.00016438,2]
[351076018,1738325438435,-500.0,0.00016438,2]
[351076020,1738325438444,-500.0,0.00016438,2]
[351076022,1738325438454,-500.0,0.00016438,2]
[351076024,1738325438464,-500.0,0.00016438,2]
[351076026,1738325438473,-500.0,0.00016438,2]
[351076028,1738325438482,-501.76063259,0.00016438,2]
[351076030,1738325438492,-4792.09,0.00016438,2]
[351076032,1738325438501,-510.40136102,0.00016438,2]
[351076034,1738325438511,-485.91671021,0.00016438,2]
[351076037,1738325438520,-500.0,0.00016438,2]
[351076039,1738325438530,-502.51942727,0.00016438,2]
[351076040,1738325438541,-500.0,0.00016438,2]
[351076043,1738325438551,-500.94755264,0.00016438,2]
[351076045,1738325438560,-501.40536022,0.00016438,2]
[351076047,1738325438569,-500.0,0.00016438,2]
[351076049,1738325438579,-500.0,0.00016438,2]
[351076051,1738325438588,-500.0,0.00016438,2]
[351076053,1738325438598,-1614.5,0.00016438,2]
[351076055,1738325438607,-500.0,0.00016438,2]
[351076057,1738325438616,-500.0,0.00016438,2]
[351076059,1738325438626,-501.55408983,0.00016438,2]
[351076061,1738325438635,-501.96807546,0.00016438,2]
[351076062,1738325438645,-1652.06,0.00016438,2]
[351076064,1738325438654,-500.0,0.00016438,2]
[351076067,1738325438665,-500.0,0.00016438,2]
[351076069,1738325438675,-500.0,0.00016438,2]
[351076071,1738325438685,-500.0,0.00016438,2]
[351076072,1738325438695,-500.0,0.00016438,2]
[351076075,1738325438705,-579.47,0.00016438,2]
[351076076,1738325438715,-500.0,0.00016438,2]
[351076078,1738325438724,-346.87213484,0.00016438,2]
[351076080,1738325438733,-569.21035784,0.00016438,2]
[351076083,1738325438743,-500.0,0.00016438,2]
[351076085,1738325438752,-521.13,0.00016438,2]
[351076087,1738325438762,-500.0,0.00016438,2]
[351076089,1738325438771,-515.11468898,0.00016438,2]
[351076091,1738325438780,-505.24150788,0.00016438,2]
[351076093,1738325438790,-265.36771231,0.00016438,2]
[351076095,1738325438798,-500.0,0.00016438,2]
[351076097,1738325438808,-500.0,0.00016438,2]
[351076099,1738325438817,-617.43120762,0.00016438,2]
[351076101,1738325438826,-500.0,0.00016438,2]
[351076103,1738325438835,-500.0,0.00016438,2]
[351076105,1738325438845,-500.0,0.00016438,2]
[351076107,1738325438854,-876.81,0.00016438,2]
[351076109,1738325438863,-503.5817909,0.00016438,2]
[351076111,1738325438872,-500.0,0.00016438,2]
[351076112,1738325438881,-501.98460534,0.00016438,2]
[351076114,1738325438891,-500.0,0.00016438,2]
[351076117,1738325438900,-500.74287687,0.00016438,2]
[351076119,1738325438910,-502.7016729,0.00016438,2]
[351076121,1738325438919,-500.0,0.00016438,2]
[351076123,1738325438928,-518.08307917,0.00016438,2]
[351076125,1738325438938,-505.70535045,0.00016438,2]
[351076126,1738325438947,-500.0,0.00016438,2]
[351076129,1738325438957,-500.0,0.00016438,2]
[351076131,1738325438968,-500.0,0.00016438,2]
[351076132,1738325438979,-500.0,0.00016438,2]
[351076134,1738325438989,-503.44955452,0.00016438,2]
[351076137,1738325439000,-500.0,0.00016438,2]
[351076139,1738325439010,-500.0,0.00016438,2]
[351076141,1738325439020,-503.28689703,0.00016438,2]
[351076143,1738325439030,-503.04067732,0.00016438,2]
[351076144,1738325439039,-503.61308378,0.00016438,2]
[351076146,1738325439048,-500.0,0.00016438,2]
[351076148,1738325439058,-1159.74,0.00016438,2]
[351076150,1738325439068,-503.05859492,0.00016438,2]
[351076152,1738325439077,-503.91689976,0.00016438,2]
[351076154,1738325439086,-500.0,0.00016438,2]
[351076156,1738325439095,-502.02405485,0.00016438,2]
[351076158,1738325439104,-500.0,0.00016438,2]
[351076160,1738325439113,-502.21258956,0.00016438,2]
[351076162,1738325439122,-500.0,0.00016438,2]
[351076164,1738325439132,-845.3,0.00016438,2]
[351076166,1738325439142,-500.0,0.00016438,2]
[351076168,1738325439152,-500.0,0.00016438,2]
[351076170,1738325439162,-500.0,0.00016438,2]
[351076172,1738325439171,-500.0,0.00016438,2]
[351076174,1738325439181,-500.0,0.00016438,2]
[351076176,1738325439191,-500.0,0.00016438,2]
[351076178,1738325439200,-500.0,0.00016438,2]
[351076180,1738325439209,-500.0,0.00016438,2]
[351076182,1738325439220,-500.0,0.00016438,2]
[351076184,1738325439229,-546.82721,0.00016438,2]
[351076186,1738325439238,-500.0,0.00016438,2]
[351076188,1738325439248,-500.0,0.00016438,2]
[351076191,1738325439258,-500.0,0.00016438,2]
[351076193,1738325439267,-500.0,0.00016438,2]
[351076195,1738325439276,-500.0,0.00016438,2]
[351076197,1738325439286,-500.0,0.00016438,2]
[351076199,1738325439295,-500.0,0.00016438,2]
[351076201,1738325439305,-500.0,0.00016438,2]
[351076203,1738325439314,-500.0,0.00016438,2]
[351076205,1738325439323,-1616.55,0.00016438,2]
[351076207,1738325439333,-500.0,0.00016438,2]
[351076209,1738325439343,-501.42874147,0.00016438,2]
[351076211,1738325439352,-2494.91,0.00016438,2]
[351076213,1738325439361,-503.57763155,0.00016438,2]
[351076215,1738325439370,-500.0,0.00016438,2]
[351076217,1738325439380,-471.4971305,0.00016438,2]
[351076219,1738325439389,-2570.45,0.00016438,2]
[351076221,1738325439399,-512.42238868,0.00016438,2]
[351076224,1738325439418,-504.3406233,0.00016438,2]
[351076226,1738325439428,-504.13369875,0.00016438,2]
[351076228,1738325439438,-500.0,0.00016438,2]
[351076230,1738325439448,-500.0,0.00016438,2]
[351076232,1738325439457,-500.0,0.00016438,2]
[351076234,1738325439468,-502.21791597,0.00016438,2]
[351076236,1738325439477,-500.0,0.00016438,2]
[351076238,1738325439487,-500.0,0.00016438,2]
[351076240,1738325439496,-500.0,0.00016438,2]
[351076242,1738325439506,-500.0,0.00016438,2]
[351076244,1738325439517,-500.0,0.00016438,2]
[351076247,1738325439527,-500.0,0.00016438,2]
[351076249,1738325439536,-500.0,0.00016438,2]
[351076251,1738325439545,-500.0,0.00016438,2]
[351076253,1738325439555,-194.9,0.00016438,2]
[351076255,1738325439565,-500.0,0.00016438,2]
[351076257,1738325439574,-500.0,0.00016438,2]
[351076259,1738325439584,-500.0,0.00016438,2]
[351076261,1738325439593,-503.73406257,0.00016438,2]
[351076263,1738325439603,-500.0,0.00016438,2]
[351076265,1738325439612,-500.0,0.00016438,2]
[351076267,1738325439622,-500.0,0.00016438,2]
[351076269,1738325439631,-500.0,0.00016438,2]
[351076271,1738325439641,-500.0,0.00016438,2]
[351076273,1738325439651,-500.0,0.00016438,2]
[351076275,1738325439660,-22419.22,0.00016438,2]
[351076277,1738325439671,-500.0,0.00016438,2]
[351076280,1738325439680,-1285.67,0.00016438,2]
[351076282,1738325439689,-500.0,0.00016438,2]
[351076284,1738325439699,-500.0,0.00016438,2]
[351076286,1738325439709,-500.0,0.00016438,2]
[351076301,1738325439848,-521.45,0.00016438,2]
[351076303,1738325439858,-744.96,0.00016438,2]
[351076305,1738325439868,-500.0,0.00016438,2]
[351076307,1738325439878,-500.0,0.00016438,2]
[351076309,1738325439888,-500.0,0.00016438,2]
[351076311,1738325439898,-531.84,0.00016438,2]
[351076313,1738325439908,-500.0,0.00016438,2]
[351076315,1738325439917,-6074.82,0.00016438,2]
[351076317,1738325439927,-500.0,0.00016438,2]
[351076319,1738325439936,-197.13918758,0.00016438,2]
[351076321,1738325439946,-500.0,0.00016438,2]
[351076322,1738325439955,-1614.59,0.00016438,2]
[351076323,1738325439966,-150.78022881,0.00016438,2]
[351076324,1738325439975,-500.0,0.00016438,2]
[351076325,1738325439983,-500.0,0.00016438,2]
[351076326,1738325439994,-1870.87,0.00016438,2]
[351076327,1738325440003,-500.0,0.00016438,2]
[351076328,1738325440012,-500.0,0.00016438,2]
[351076330,1738325440021,-500.0,0.00016438,2]
[351076331,1738325440031,-500.0,0.00016438,2]
[351076332,1738325440041,-583.38,0.00016438,2]
[351076333,1738325440050,-4119.28,0.00016438,2]
[351076334,1738325440059,-500.0,0.00016438,2]
[351076335,1738325440070,-500.0,0.00016473,2]
[351076336,1738325440079,-501.85124374,0.00016473,2]
[351076338,1738325440088,-500.0,0.00016473,2]
[351076339,1738325440098,-502.76136118,0.00016473,2]
[351076340,1738325440107,-500.0,0.00016473,2]
[351076342,1738325440117,-500.0,0.00016473,2]
[351076344,1738325440126,-269.45756767,0.00016473,2]
[351076346,1738325440136,-500.0,0.00016574,2]
[351076348,1738325440145,-320.0935286,0.00016574,2]
[351076350,1738325440155,-500.0,0.00016575,2]
[351076352,1738325440164,-500.0,0.00016575,2]
[351076354,1738325440176,-500.0,0.00016575,2]
[351076357,1738325440185,-500.0,0.00016575,2]
[351076359,1738325440195,-506.11892874,0.00016575,2]
[351076361,1738325440204,-513.07998144,0.00016575,2]
[351076363,1738325440214,-500.0,0.00016575,2]
[351076365,1738325440223,-472.4008597,0.00016575,2]
[351076367,1738325440233,-500.0,0.00016575,2]
[351076369,1738325440243,-508.42411831,0.00016575,2]
[351076370,1738325440253,-500.0,0.00016575,2]
[351076372,1738325440262,-500.0,0.00016575,2]
[351076374,1738325440271,-500.0,0.00016575,2]
[351076376,1738325440280,-500.0,0.00016575,2]
[351076378,1738325440290,-500.0,0.00016575,2]
[351076380,1738325440305,-500.0,0.00016575,2]
[351076382,1738325440315,-515.19476654,0.00016575,2]
[351076384,1738325440324,-500.0,0.00016575,2]
[351076386,1738325440333,-1012.14086884,0.00016575,2]
[351076388,1738325440342,-500.0,0.00016575,2]
[351076390,1738325440351,-500.0,0.00016575,2]
[351076392,1738325440361,-500.0,0.00016575,2]
[351076394,1738325440370,-208.58685973,0.00016575,2]
[351076396,1738325440379,-500.0,0.00016575,2]
[351076398,1738325440389,-500.0,0.00016575,2]
[351076400,1738325440398,-500.0,0.00016575,2]
[351076402,1738325440407,-319.78208964,0.00016575,2]
[351076404,1738325440416,-245.57,0.00016575,2]
[351076406,1738325440425,-500.0,0.00016575,2]
[351076408,1738325440435,-500.0,0.00016575,2]
[351076410,1738325440444,-500.0,0.00016575,2]
[351076412,1738325440455,-500.0,0.00016575,2]
[351076414,1738325440464,-500.0,0.00016575,2]
[351076416,1738325440474,-241.75468283,0.00016575,2]
[351076418,1738325440483,-500.0,0.00016575,2]
[351076420,1738325440493,-500.0,0.00016575,2]
[351076421,1738325440503,-500.0,0.00016575,2]
[351076423,1738325440512,-500.0,0.00016575,2]
[351076425,1738325440521,-500.0,0.00016575,2]
[351076426,1738325440531,-500.0,0.00016575,2]
[351076427,1738325440540,-584.29,0.00016575,2]
[351076428,1738325440550,-500.0,0.00016575,2]
[351076429,1738325440560,-500.0,0.00016575,2]
[351076430,1738325440569,-500.0,0.00016575,2]
[351076431,1738325440578,-587.43,0.00016575,2]
[351076432,1738325440588,-503.5598114,0.00016575,2]
[351076433,1738325440598,-500.0,0.00016575,2]
[351076434,1738325440607,-515.30303953,0.00016575,2]
[351076435,1738325440617,-500.0,0.00016575,2]
[351076436,1738325440626,-707.46,0.00016575,2]
[351076437,1738325440636,-500.0,0.00016575,2]
[351076438,1738325440646,-500.0,0.00016575,2]
[351076439,1738325440655,-188.04,0.00016575,2]
[351076440,1738325440665,-4792.09,0.00016575,2]
[351076441,1738325440675,-500.0,0.00016575,2]
[351076442,1738325440684,-1614.5,0.00016575,2]
[351076443,1738325440694,-500.0,0.00016575,2]
[351076444,1738325440703,-1652.06,0.00016575,2]
[351076445,1738325440713,-500.0,0.00016575,2]
[351076446,1738325440723,-500.0,0.00016575,2]
[351076447,1738325440733,-500.0,0.00016575,2]
[351076448,1738325440742,-643.75,0.00016575,2]
[351076449,1738325440752,-579.47,0.00016575,2]
[351076450,1738325440762,-500.0,0.00016575,2]
[351076451,1738325440771,-157.85,0.00016575,2]
[351076452,1738325440780,-500.0,0.00016575,2]
[351076453,1738325440789,-500.0,0.00016575,2]
[351076454,1738325440799,-500.0,0.00016575,2]
[351076455,1738325440809,-876.81,0.00016575,2]
[351076456,1738325440819,-500.0,0.00016575,2]
[351076457,1738325440828,-500.0,0.00016575,2]
[351076458,1738325440837,-500.0,0.00016575,2]
[351076459,1738325440846,-214.90202485,0.00016575,2]
[351076460,1738325440854,-500.0,0.00016575,2]
[351076461,1738325440863,-1159.74,0.00016575,2]
[351076462,1738325440873,-500.0,0.00016575,2]
[351076463,1738325440882,-607.25295662,0.00016575,2]
[351076464,1738325440891,-286.42,0.00016575,2]
[351076465,1738325440904,-845.3,0.00016575,2]
[351076466,1738325440913,-500.0,0.00016575,2]
[351076467,1738325440923,-500.0,0.00016575,2]
[351076468,1738325440933,-500.0,0.00016575,2]
[351076469,1738325440942,-500.0,0.00016575,2]
[351076470,1738325440951,-1616.55,0.00016575,2]
[351076471,1738325440964,-2494.91,0.00016575,2]
[351076472,1738325440975,-2570.45,0.00016575,2]
[351076473,1738325440987,-500.0,0.00016575,2]
[351076474,1738325440997,-500.0,0.00016575,2]
[351076475,1738325441006,-500.0,0.00016575,2]
[351076476,1738325441016,-500.0,0.00016575,2]
[351076477,1738325441025,-500.0,0.00016575,2]
[351076478,1738325441035,-500.0,0.00016575,2]
[351076479,1738325441045,-500.0,0.00016575,2]
[351076480,1738325441054,-500.0,0.00016575,2]
[351076481,1738325441064,-9455.33754228,0.00016575,2]
[351076506,1738325441386,-6351.28166407,0.00016575,2]
[351076508,1738325441399,-6612.60079365,0.00016575,2]
[351076510,1738325441408,-135.76352047,0.00016575,2]
[351076513,1738325441420,-1149.90647953,0.00016575,2]
[351076515,1738325441429,-500.0,0.00016575,2]
[351076516,1738325441439,-500.0,0.00016575,2]
[351076518,1738325441448,-521.45,0.00016575,2]
[351076520,1738325441458,-404.51100342,0.00016575,2]
[351076523,1738325441471,-340.44899658,0.00016575,2]
[351076525,1738325441480,-500.0,0.00016575,2]
[351076527,1738325441490,-500.0,0.00016575,2]
[351076529,1738325441499,-531.84,0.00016575,2]
[351076531,1738325441508,-392.67838966,0.00016575,2]
[351076533,1738325441521,-107.32161034,0.00016575,2]
[351076535,1738325441530,-368.34838966,0.00016575,2]
[351076537,1738325441541,-799.8603524,0.00016575,2]
[351076539,1738325441552,-1078.107955,0.00016575,2]
[351076567,1738325441808,-3165.08113416,0.00016575,2]
[351076653,1738325443435,-663.42216878,0.00016575,2]
[351076654,1738325443444,-500.0,0.00016575,2]
[351076655,1738325443454,-1614.59,0.00016575,2]
[351076656,1738325443463,-500.0,0.00016575,2]
[351076657,1738325443473,-1698.22722733,0.00016575,2]
[351076658,1738325443541,-172.64277267,0.00016575,2]
[351076659,1738325443551,-96.02608756,0.00016575,2]
[351076660,1738325443563,-403.97391244,0.00016575,2]
[351076661,1738325443572,-500.0,0.00016575,2]
[351076662,1738325443582,-25.84661422,0.00016575,2]
[351076929,1738325482320,292.926844,0.00013973,2]
[351076931,1738326156264,184.299091,0.00013699,2]
[351076933,1738326242509,540.3224408,0.000151,2]
[351076939,1738326489392,274.614871,0.00015064,2]
[351076941,1738326525289,1436.24519597,0.00013,2]
[351076955,1738326622221,250.0,0.00015075,2]
[351076984,1738326632860,-300.0,0.00015154,2]
[351076985,1738326632870,-500.0,0.00015155,2]
[351076986,1738326632879,-500.0,0.00015155,2]
[351076987,1738326632888,-290.81084424,0.00015155,2]
[351076988,1738326632900,-209.18915576,0.00015155,2]
[351076989,1738326632909,-500.0,0.00015155,2]
[351076990,1738326632918,-432.20094241,0.00015155,2]
[351076991,1738326632928,-272.2087386,0.00015417,2]
[351076992,1738326632937,-14201.3741649,0.00015575,2]
[351076993,1738326632946,-500.0,0.00015948,2]
[351076994,1738326632955,-154.781,0.0001601,2]
[351076995,1738326632964,-12902.89720649,0.00016337,2]
[351076996,1738326632974,-700.0,0.00016356,2]
[351076997,1738326632983,-542.68270637,0.00016437,2]
[351076998,1738326632993,-500.0,0.00016438,2]
[351076999,1738326633002,-453.35064303,0.00016438,2]
[351077000,1738326633012,-500.0,0.00016438,2]
[351077001,1738326633021,-500.0,0.00016438,2]
[351077002,1738326633030,-500.0,0.00016438,2]
[351077003,1738326633040,-489.41774235,0.00016438,2]
[351077042,1738326638585,-11.9715412,0.00016438,2]
[351077044,1738326638595,-500.0,0.00016438,2]
[351077046,1738326638604,-282.567641,0.00016438,2]
[351077048,1738326638614,-500.0,0.00016438,2]
[351077050,1738326638623,-500.0,0.00016438,2]
[351077052,1738326638633,-546.11,0.00016438,2]
[351077054,1738326638642,-500.0,0.00016438,2]
[351077056,1738326638651,-500.0,0.00016438,2]
[351077058,1738326638661,-649.0,0.00016438,2]
[351077060,1738326638670,-500.0,0.00016438,2]
[351077062,1738326638679,-500.0,0.00016438,2]
[351077064,1738326638689,-508.13626382,0.00016438,2]
[351077066,1738326638699,-500.0,0.00016438,2]
[351077068,1738326638708,-503.25856372,0.00016438,2]
[351077070,1738326638718,-502.45996845,0.00016438,2]
[351077072,1738326638728,-502.04025109,0.00016438,2]
[351077074,1738326638737,-500.0,0.00016438,2]
[351077076,1738326638747,-500.0,0.00016438,2]
[351077078,1738326638756,-504.01018062,0.00016438,2]
[351077080,1738326638766,-502.36432222,0.00016438,2]
[351077082,1738326638776,-500.0,0.00016438,2]
[351077084,1738326638786,-501.13974454,0.00016438,2]
[351077086,1738326638795,-500.0,0.00016438,2]
[351077088,1738326638805,-500.0,0.00016438,2]
[351077090,1738326638815,-500.0,0.00016438,2]
[351077092,1738326638825,-500.0,0.00016438,2]
[351077094,1738326638834,-500.0,0.00016438,2]
[351077096,1738326638844,-500.0,0.00016438,2]
[351077098,1738326638854,-500.0,0.00016438,2]
[351077100,1738326638863,-500.0,0.00016438,2]
[351077102,1738326638872,-500.0,0.00016438,2]
[351077104,1738326638882,-500.0,0.00016438,2]
[351077106,1738326638892,-500.0,0.00016438,2]
[351077108,1738326638901,-501.44398204,0.00016438,2]
[351077110,1738326638911,-500.0,0.00016438,2]
[351077112,1738326638920,-500.0,0.00016438,2]
[351077114,1738326638929,-553.17055382,0.00016438,2]
[351077116,1738326638938,-500.0,0.00016438,2]
[351077118,1738326638948,-500.0,0.00016438,2]
[351077120,1738326638957,-500.0,0.00016438,2]
[351077122,1738326638966,-500.0,0.00016438,2]
[351077124,1738326638976,-500.0,0.00016438,2]
[351077126,1738326638985,-259.84897959,0.00016438,2]
[351077128,1738326638994,-648.24938065,0.00016438,2]
[351077130,1738326639003,-500.0,0.00016438,2]
[351077132,1738326639014,-500.0,0.00016438,2]
[351077135,1738326639023,-500.0,0.00016438,2]
[351077137,1738326639032,-500.0,0.00016438,2]
[351077139,1738326639043,-500.0,0.00016438,2]
[351077141,1738326639052,-500.0,0.00016438,2]
[351077142,1738326639065,-500.0,0.00016438,2]
[351077158,1738326639202,-500.0,0.00016438,2]
[351077160,1738326639212,-500.0,0.00016438,2]
[351077162,1738326639222,-194.69190493,0.00016438,2]
[351077164,1738326639233,-500.0,0.00016438,2]
[351077166,1738326639243,-500.0,0.00016438,2]
[351077169,1738326639254,-503.0238115,0.00016438,2]
[351077171,1738326639264,-502.84961292,0.00016438,2]
[351077173,1738326639273,-500.0,0.00016438,2]
[351077175,1738326639283,-500.0,0.00016438,2]
[351077177,1738326639292,-500.0,0.00016438,2]
[351077179,1738326639301,-504.57868983,0.00016438,2]
[351077181,1738326639311,-500.0,0.00016438,2]
[351077183,1738326639320,-500.0,0.00016438,2]
[351077185,1738326639330,-508.63385121,0.00016438,2]
[351077187,1738326639340,-504.55770866,0.00016438,2]
[351077189,1738326639349,-500.0,0.00016438,2]
[351077191,1738326639360,-500.0,0.00016438,2]
[351077193,1738326639370,-500.0,0.00016438,2]
[351077195,1738326639379,-500.0,0.00016438,2]
[351077197,1738326639388,-503.51192999,0.00016438,2]
[351077199,1738326639398,-500.0,0.00016438,2]
[351077201,1738326639407,-500.0,0.00016438,2]
[351077203,1738326639417,-500.0,0.00016438,2]
[351077205,1738326639427,-500.0,0.00016438,2]
[351077207,1738326639436,-502.75290338,0.00016438,2]
[351077209,1738326639446,-500.0,0.00016438,2]
[351077211,1738326639456,-500.0,0.00016438,2]
[351077213,1738326639465,-500.0,0.00016438,2]
[351077215,1738326639476,-500.0,0.00016438,2]
[351077217,1738326639485,-500.0,0.00016438,2]
[351077219,1738326639495,-500.0,0.00016438,2]
[351077221,1738326639504,-500.0,0.00016438,2]
[351077223,1738326639513,-500.0,0.00016438,2]
[351077225,1738326639522,-500.0,0.00016438,2]
[351077227,1738326639531,-500.0,0.00016438,2]
[351077229,1738326639541,-500.0,0.00016438,2]
[351077231,1738326639550,-505.26037994,0.00016438,2]
[351077233,1738326639559,-500.0,0.00016438,2]
[351077235,1738326639568,-500.0,0.00016438,2]
[351077237,1738326639578,-577.27,0.00016438,2]
[351077239,1738326639586,-500.0,0.00016438,2]
[351077241,1738326639596,-524.65214033,0.00016438,2]
[351077243,1738326639606,-500.0,0.00016438,2]
[351077245,1738326639615,-500.0,0.00016438,2]
[351077247,1738326639624,-500.91053396,0.00016438,2]
[351077249,1738326639633,-500.0,0.00016438,2]
[351077251,1738326639642,-500.0,0.00016438,2]
[351077253,1738326639651,-580.15,0.00016438,2]
[351077255,1738326639660,-500.0,0.00016438,2]
[351077257,1738326639670,-500.0,0.00016438,2]
[351077259,1738326639679,-503.55154345,0.00016438,2]
[351077262,1738326639689,-503.34925608,0.00016438,2]
[351077264,1738326639698,-600.74,0.00016438,2]
[351077266,1738326639707,-500.0,0.00016438,2]
[351077267,1738326639716,-500.0,0.00016438,2]
[351077270,1738326639727,-500.0,0.00016438,2]
[351077272,1738326639735,-500.0,0.00016438,2]
[351077274,1738326639744,-500.0,0.00016438,2]
[351077275,1738326639753,-500.0,0.00016438,2]
[351077277,1738326639763,-500.0,0.00016438,2]
[351077279,1738326639773,-603.32,0.00016438,2]
[351077282,1738326639783,-500.0,0.00016438,2]
[351077284,1738326639793,-500.0,0.00016438,2]
[351077286,1738326639802,-500.0,0.00016438,2]
[351077288,1738326639811,-500.0,0.00016438,2]
[351077290,1738326639820,-500.0,0.00016438,2]
[351077292,1738326639829,-229.68044973,0.00016438,2]
[351077294,1738326639838,-508.24048055,0.00016438,2]
[351077296,1738326639847,-456.42,0.00016438,2]
[351077297,1738326639857,-845.41,0.00016438,2]
[351077299,1738326639869,-503.9987569,0.00016438,2]
[351077301,1738326639879,-500.0,0.00016438,2]
[351077304,1738326639888,-500.0,0.00016438,2]
[351077305,1738326639897,-1496.1,0.00016438,2]
[351077307,1738326639906,-500.0,0.00016438,2]